bitfinex/quotes_BTCUSD_20250406
["timestamp","ask_amount","ask_price","bid_price","bid_amount"]
[1743940244317,0.001,82714.0,82711.0,0.29123391]
[1743940244520,0.001,82714.0,82712.0,0.00755773]
[1743940244747,0.001,82714.0,82712.0,0.24755773]
[1743940245087,0.0013306,82715.0,82713.0,0.02122821]
[1743940245203,0.0013306,82715.0,82713.0,0.30122821]
[1743940245429,0.0003306,82715.0,82714.0,0.00755773]
[1743940245630,0.0003306,82715.0,82714.0,0.2512396]
[1743940247137,0.0003306,82715.0,82714.0,0.2522396]
[1743940247788,0.0003306,82715.0,82714.0,0.2532396]
[1743940248237,0.0003306,82715.0,82714.0,0.42264257]
[1743940248438,0.0003306,82715.0,82714.0,0.43396415]
[1743940250324,0.0003306,82715.0,82714.0,0.44587393]
[1743940251171,0.0003306,82715.0,82714.0,0.45500157]
[1743940252247,0.0003306,82715.0,82714.0,0.45516687]
[1743940253027,0.0003306,82715.0,82714.0,0.45316687]
[1743940253340,0.0003306,82715.0,82714.0,0.45716687]
[1743940253667,0.0003306,82715.0,82714.0,0.45316687]
[1743940254004,0.0003306,82715.0,82714.0,0.45816687]
[1743940254731,0.0003306,82715.0,82714.0,0.45616687]
[1743940255129,0.0003306,82715.0,82714.0,0.45316687]
[1743940256336,0.0003306,82715.0,82714.0,0.45516687]
[1743940256576,0.0003306,82715.0,82714.0,0.45816687]
[1743940256863,0.0003306,82715.0,82714.0,0.41166687]
[1743940260798,0.0003306,82715.0,82714.0,0.26772648]
[1743940261555,0.0003306,82715.0,82714.0,0.2564049]
[1743940262192,0.0003306,82715.0,82714.0,0.0264049]
[1743940263200,0.0003306,82715.0,82714.0,0.01884717]
[1743940268824,0.0003306,82715.0,82714.0,0.02640508]
[1743940283188,0.2303306,82715.0,82714.0,0.02640508]
[1743940283391,0.0003306,82715.0,82714.0,0.02640508]
[1743940283591,0.0003306,82715.0,82714.0,0.01272321]
[1743940283829,0.0003306,82715.0,82714.0,0.026321]
[1743940284024,0.0003306,82715.0,82714.0,0.01272321]
[1743940284223,0.0003306,82715.0,82714.0,0.026321]
[1743940285022,0.0003306,82715.0,82714.0,0.276321]
[1743940285221,0.0003306,82715.0,82714.0,0.026321]
[1743940285626,0.0003306,82715.0,82714.0,0.01272321]
[1743940289232,0.0003306,82715.0,82714.0,0.02405177]
[1743940291339,0.0003306,82715.0,82714.0,0.26405177]
[1743940291850,0.0003306,82715.0,82714.0,0.03763691]
[1743940292046,0.0003306,82715.0,82714.0,0.02405177]
[1743940292212,0.0003306,82715.0,82714.0,0.28405177]
[1743940292403,0.0003306,82715.0,82714.0,0.29761413]
[1743940292611,0.0003306,82715.0,82714.0,0.03761413]
[1743940292812,0.0003306,82715.0,82714.0,0.02405177]
[1743940293180,0.0003306,82715.0,82714.0,0.28405177]
[1743940293618,0.0003306,82715.0,82714.0,0.2976426]
[1743940294195,0.0003306,82715.0,82714.0,0.3076426]
[1743940294348,0.0003306,82715.0,82714.0,0.0376426]
[1743940294772,0.0003306,82715.0,82714.0,0.02405177]
[1743940301371,0.0003306,82715.0,82714.0,0.28405177]
[1743940301579,0.0003306,82715.0,82714.0,0.02405177]
[1743940301757,0.0003306,82715.0,82714.0,0.03763715]
[1743940301958,0.0003306,82715.0,82714.0,0.02405177]
[1743940306891,0.0003306,82715.0,82714.0,0.27405177]
[1743940307088,0.0003306,82715.0,82714.0,0.03763241]
[1743940307291,0.0003306,82715.0,82714.0,0.29405177]
[1743940307521,0.0003306,82715.0,82714.0,0.30763241]
[1743940308140,0.0003306,82715.0,82714.0,0.03763241]
[1743940308326,0.0003306,82715.0,82714.0,0.31763241]
[1743940308497,0.0003306,82715.0,82714.0,0.30258802]
[1743940308696,0.0003306,82715.0,82714.0,0.31558866]
[1743940308895,0.0003306,82715.0,82714.0,0.28558866]
[1743940309094,0.0003306,82715.0,82714.0,0.28410952]
[1743940309610,0.0003306,82715.0,82714.0,0.27321587]
[1743940310182,0.0003306,82715.0,82714.0,0.27232222]
[1743940310631,0.0003306,82715.0,82714.0,0.03232222]
[1743940310941,0.0003306,82715.0,82714.0,0.27874158]
[1743940311412,0.0003306,82715.0,82714.0,0.29231791]
[1743940311750,0.0003306,82715.0,82714.0,0.03231791]
[1743940312079,0.0003306,82715.0,82714.0,0.25874158]
[1743940312322,0.0003306,82715.0,82714.0,0.03231791]
[1743940312725,0.0003306,82715.0,82714.0,0.01874158]
[1743940313182,0.0003306,82715.0,82714.0,0.24874158]
[1743940313573,0.0003306,82715.0,82714.0,0.26231791]
[1743940313738,0.0003306,82715.0,82714.0,0.03231791]
[1743940314325,0.0003306,82715.0,82714.0,0.26231791]
[1743940314620,0.0003306,82715.0,82714.0,0.03231791]
[1743940319901,0.0003306,82715.0,82714.0,0.24874158]
[1743940320378,0.0003306,82715.0,82714.0,0.26231791]
[1743940320582,0.0003306,82715.0,82714.0,0.03231791]
[1743940320799,0.0003306,82715.0,82714.0,0.27231791]
[1743940321159,0.0003306,82715.0,82714.0,0.27248321]
[1743940321358,0.0003306,82715.0,82714.0,0.31026238]
[1743940322756,0.0003306,82715.0,82714.0,0.47976535]
[1743940323631,0.0003306,82715.0,82714.0,0.47976535]
[1743940329643,0.0003306,82715.0,82714.0,0.48276535]
[1743940329998,0.0003306,82715.0,82714.0,0.47976535]
[1743940330537,0.0003306,82715.0,82714.0,0.48276535]
[1743940330898,0.0003306,82715.0,82714.0,0.48676535]
[1743940331342,0.0003306,82715.0,82714.0,0.48276535]
[1743940331569,0.0003306,82715.0,82714.0,0.48676535]
[1743940331773,0.0003306,82715.0,82714.0,0.48376535]
[1743940332123,0.0003306,82715.0,82714.0,0.48676535]
[1743940333900,0.0003306,82715.0,82714.0,0.44016535]
[1743940344870,0.0003306,82715.0,82714.0,0.44449209]
[1743940345820,0.0469306,82715.0,82714.0,0.44449209]
[1743940346013,0.0469306,82715.0,82714.0,0.32158912]
[1743940346252,0.0469306,82715.0,82714.0,0.28380995]
[1743940350204,0.0469306,82715.0,82714.0,0.32153308]
[1743940350946,0.0469306,82715.0,82714.0,0.28380995]
[1743940351182,0.0469306,82715.0,82714.0,0.32153756]
[1743940351328,0.0469306,82715.0,82714.0,0.28380995]
[1743940351527,0.0469306,82715.0,82714.0,0.32154162]
[1743940351841,0.0967306,82715.0,82714.0,0.28380995]
[1743940352797,0.0967306,82715.0,82714.0,0.04380995]
[1743940353093,0.0967306,82715.0,82714.0,0.03980995]
[1743940353299,0.0967306,82715.0,82714.0,0.02590688]
[1743940353438,0.0967306,82715.0,82714.0,0.02190688]
[1743940353841,0.0967306,82715.0,82714.0,0.01057832]
[1743940354136,0.0967306,82715.0,82714.0,0.01257832]
[1743940354344,0.0967306,82715.0,82714.0,0.00957832]
[1743940354575,0.0967306,82715.0,82714.0,0.01257832]
[1743940355424,0.3367306,82715.0,82714.0,0.28957832]
[1743940355613,0.0967306,82715.0,82714.0,0.29157832]
[1743940355820,0.0967306,82715.0,82714.0,0.31378771]
[1743940357320,0.0967306,82715.0,82714.0,0.32510784]
[1743940357945,0.0967306,82715.0,82714.0,0.31378771]
[1743940359087,0.0967306,82715.0,82714.0,0.03378771]
[1743940359243,0.0967306,82715.0,82714.0,0.31378771]
[1743940359605,0.0967306,82715.0,82714.0,0.03379847]
[1743940359807,0.0967306,82715.0,82714.0,0.02638545]
[1743940360012,0.21963357,82715.0,82714.0,0.0041653]
[1743940360239,0.25343157,82715.0,82714.0,0.0021653]
[1743940361086,0.25343157,82715.0,82714.0,0.0041653]
[1743940361295,0.25343157,82715.0,82714.0,0.0001653]
[1743940361622,0.26537371,82715.0,82714.0,0.0001653]
[1743940363538,0.26737371,82715.0,82714.0,0.0001653]
[1743940364178,0.60937371,82715.0,82714.0,0.0001653]
[1743940364403,0.34,82714.0,82710.0,0.00030385]
[1743940364628,0.34,82712.0,82710.0,0.00030385]
[1743940364829,0.21780297,82711.0,82710.0,0.00030385]
[1743940367074,0.21880297,82711.0,82710.0,0.00030385]
[1743940367299,0.35220297,82711.0,82710.0,0.00030385]
[1743940367504,0.0959,82711.0,82710.0,0.00030385]
[1743940367707,0.2293,82711.0,82710.0,0.00030385]
[1743940367912,0.1344,82711.0,82710.0,0.00030385]
[1743940368866,0.1354,82711.0,82710.0,0.00030385]
[1743940372242,0.1344,82711.0,82710.0,0.00030385]
[1743940373093,0.1334,82711.0,82710.0,0.00030385]
[1743940373305,0.1334,82711.0,82710.0,0.00230385]
[1743940374089,0.1334,82711.0,82710.0,0.00430385]
[1743940374285,0.1334,82711.0,82710.0,0.00230385]
[1743940374801,0.1334,82711.0,82710.0,0.00430385]
[1743940375007,0.1334,82711.0,82710.0,0.00230385]
[1743940375430,0.1334,82711.0,82710.0,0.00430385]
[1743940377150,0.1334,82711.0,82710.0,0.28430385]
[1743940377359,0.1334,82711.0,82710.0,0.02680245]
[1743940377571,0.1334,82711.0,82710.0,0.27430385]
[1743940377925,0.1334,82711.0,82710.0,0.02679269]
[1743940378157,0.1334,82711.0,82710.0,0.00430385]
[1743940378331,0.1334,82711.0,82710.0,0.25430385]
[1743940378532,0.1334,82711.0,82710.0,0.30679269]
[1743940380109,0.1334,82711.0,82710.0,0.02679269]
[1743940380327,0.1334,82711.0,82710.0,0.00430385]
[1743940380744,0.1334,82711.0,82710.0,0.28430385]
[1743940381185,0.1334,82711.0,82710.0,0.02679269]
[1743940381410,0.1334,82711.0,82710.0,0.27679269]
[1743940381605,0.1334,82711.0,82710.0,0.02679269]
[1743940382150,0.1334,82711.0,82710.0,0.00430385]
[1743940385622,0.182,82711.0,82710.0,0.00430385]
[1743940393326,0.0486,82711.0,82710.0,0.27430385]
[1743940393682,0.0486,82711.0,82710.0,0.02677402]
[1743940394004,0.0486,82711.0,82710.0,0.00430385]
[1743940394374,0.0486,82711.0,82710.0,0.27430385]
[1743940394573,0.0486,82711.0,82710.0,0.26677972]
[1743940394778,0.0486,82711.0,82710.0,0.27433781]
[1743940395112,0.0486,82711.0,82710.0,0.03433781]
[1743940395561,0.0486,82711.0,82710.0,0.02771506]
[1743940395752,0.0486,82711.0,82710.0,0.27771506]
[1743940396135,0.0486,82711.0,82710.0,0.28771506]
[1743940396356,0.0486,82711.0,82710.0,0.30771506]
[1743940396797,0.0486,82711.0,82710.0,0.29771506]
[1743940397776,0.0003306,82714.0,82710.0,0.30771506]
[1743940398133,0.0003306,82714.0,82711.0,0.00755809]
[1743940398341,0.0003306,82714.0,82712.0,0.02016836]
[1743940398535,0.0003306,82714.0,82712.0,0.26016836]
[1743940398772,0.0003306,82714.0,82713.0,0.00755809]
[1743940398930,0.0003306,82714.0,82713.0,0.26773214]
[1743940399124,0.0003306,82714.0,82713.0,0.02773214]
[1743940399368,0.0003306,82714.0,82713.0,0.23755809]
[1743940399550,0.0003306,82714.0,82713.0,0.25772645]
[1743940399750,0.0003306,82714.0,82713.0,0.02772645]
[1743940400085,0.0003306,82714.0,82713.0,0.29772645]
[1743940400243,0.0003306,82714.0,82713.0,0.27755809]
[1743940400452,0.0003306,82714.0,82713.0,0.29773784]
[1743940400828,0.0003306,82714.0,82713.0,0.25773784]
[1743940401851,0.0003306,82714.0,82713.0,0.25873784]
[1743940402309,0.0003306,82714.0,82713.0,0.02873784]
[1743940402447,0.0003306,82714.0,82713.0,0.29873784]
[1743940402649,0.0003306,82714.0,82713.0,0.27855809]
[1743940402852,0.0003306,82714.0,82713.0,0.00855809]
[1743940403047,0.0003306,82714.0,82713.0,0.26873784]
[1743940403253,0.0003306,82714.0,82713.0,0.27855809]
[1743940403492,0.0003306,82714.0,82713.0,0.28873214]
[1743940403888,0.0003306,82714.0,82713.0,0.02873214]
[1743940404072,0.0003306,82714.0,82713.0,0.27873214]
[1743940404271,0.0003306,82714.0,82713.0,0.25873214]
[1743940404958,0.0003306,82714.0,82713.0,0.02873214]
[1743940405850,0.0003306,82714.0,82713.0,0.04006321]
[1743940406304,0.0003306,82714.0,82713.0,0.27006321]
[1743940406512,0.0003306,82714.0,82713.0,0.31806321]
[1743940406741,0.0003306,82714.0,82713.0,0.35582868]
[1743940407146,0.0003306,82714.0,82713.0,0.36805051]
[1743940411163,0.0003306,82714.0,82713.0,0.32005051]
[1743940411525,0.0003306,82714.0,82713.0,0.28228504]
[1743940427485,0.0003306,82714.0,82713.0,0.31999856]
[1743940427700,0.0003306,82714.0,82713.0,0.44290153]
[1743940428278,0.0003306,82714.0,82713.0,0.44190153]
[1743940428410,0.0003306,82714.0,82713.0,0.44290153]
[1743940429099,0.0003306,82714.0,82713.0,0.44490153]
[1743940429521,0.0003306,82714.0,82713.0,0.44290153]
[1743940430382,0.0003306,82714.0,82713.0,0.44190153]
[1743940430587,0.0003306,82714.0,82713.0,0.44390153]
[1743940430971,0.0003306,82714.0,82713.0,0.44590153]
[1743940431198,0.0003306,82714.0,82713.0,0.44390153]
[1743940431321,0.0003306,82714.0,82713.0,0.44590153]
[1743940436545,0.0003306,82714.0,82713.0,0.93380238]
[1743940436782,0.0003306,82715.0,82714.0,0.35454085]
[1743940436973,0.0003306,82715.0,82714.0,0.75515734]
[1743940437181,0.0003306,82715.0,82714.0,0.78252358]
[1743940437336,0.0003306,82715.0,82714.0,0.79385465]
[1743940438173,0.0013306,82715.0,82714.0,0.79685465]
[1743940438395,0.0003306,82715.0,82714.0,0.79385465]
[1743940438786,0.0013306,82715.0,82714.0,0.79685465]
[1743940440592,0.0023306,82715.0,82714.0,0.80185465]
[1743940441744,0.0023306,82715.0,82714.0,0.93521465]
[1743940442911,0.2423306,82715.0,82714.0,0.93521465]
[1743940443140,0.0023306,82715.0,82714.0,0.93521465]
[1743940444114,0.0023306,82715.0,82714.0,0.92388358]
[1743940447287,0.0023306,82715.0,82714.0,0.93518397]
[1743940454203,0.0023306,82715.0,82714.0,0.94018397]
[1743940456450,0.0123306,82715.0,82714.0,0.94018397]
[1743940456630,0.0023306,82715.0,82714.0,0.94018397]
[1743940456831,0.0003306,82720.0,82719.0,0.01454085]
[1743940457069,0.0003306,82720.0,82719.0,0.79510887]
[1743940457250,0.0003306,82720.0,82719.0,0.80024978]
[1743940458067,0.0003306,82720.0,82719.0,0.80424978]
[1743940458388,0.0003306,82720.0,82719.0,0.80924978]
[1743940461615,0.0003306,82720.0,82719.0,0.81815336]
[1743940462241,0.0003306,82720.0,82719.0,0.81315336]
[1743940462444,0.0013306,82720.0,82719.0,1.30395336]
[1743940462933,0.0497306,82743.0,82731.0,0.01454085]
[1743940463224,0.0497306,82743.0,82733.0,0.01454085]
[1743940463462,0.0497306,82743.0,82735.0,0.01454085]
[1743940463631,0.0497306,82743.0,82736.0,0.16061649]
[1743940463847,0.0497306,82743.0,82737.0,0.03771352]
[1743940464017,0.0497306,82743.0,82738.0,0.12290297]
[1743940464223,0.0497306,82743.0,82739.0,0.04527161]
[1743940464418,0.0497306,82743.0,82739.0,0.41817458]
[1743940464736,0.0497306,82743.0,82739.0,0.44623738]
[1743940464946,0.0003306,82743.0,82739.0,0.44623738]
[1743940465913,0.0003306,82743.0,82739.0,0.44923738]
[1743940466998,0.0003306,82743.0,82739.0,0.45323738]
[1743940468202,0.0003306,82743.0,82742.0,0.01954085]
[1743940468411,0.0003306,82743.0,82742.0,0.80015734]
[1743940468565,0.0003306,82743.0,82742.0,0.8349631]
[1743940469604,0.0003306,82743.0,82742.0,0.82966271]
[1743940470024,0.0003306,82743.0,82742.0,0.82366271]
[1743940470354,0.0003306,82743.0,82742.0,0.82966271]
[1743940471355,0.0003306,82743.0,82742.0,0.83566271]
[1743940471558,0.0003306,82743.0,82742.0,0.84450444]
[1743940476734,0.0003304,82749.0,82742.0,0.84450444]
[1743940476735,0.0003304,82749.0,82743.0,0.35954085]
[1743940476937,0.0003304,82749.0,82743.0,0.81613755]
[1743940477233,0.0003304,82749.0,82743.0,0.82369564]
[1743940477992,0.0003304,82749.0,82743.0,0.82969564]
[1743940478664,0.0003304,82749.0,82743.0,0.83569564]
[1743940480271,0.0480304,82749.0,82743.0,0.96897564]
[1743940481539,0.0003304,82749.0,82743.0,0.96897564]
[1743940481742,0.0003304,82749.0,82743.0,1.38337564]
[1743940481949,0.0003306,82765.0,82743.0,1.38337564]
[1743940481950,0.0480306,82764.0,82756.0,0.01454085]
[1743940482204,0.0003306,82764.0,82759.0,0.01454085]
[1743940482411,0.0003306,82764.0,82761.0,0.01454085]
[1743940482744,0.0003306,82764.0,82762.0,0.16290883]
[1743940482860,0.0003306,82764.0,82763.0,0.0159587]
[1743940483059,0.0003306,82764.0,82763.0,0.42641976]
[1743940484720,0.0003306,82764.0,82763.0,0.45523124]
[1743940484925,0.0003306,82764.0,82763.0,0.49279445]
[1743940485119,0.0003306,82764.0,82763.0,0.83279445]
[1743940485720,0.0003306,82764.0,82763.0,0.83679445]
[1743940485923,0.0003306,82764.0,82763.0,0.83279445]
[1743940486380,0.0003306,82764.0,82763.0,0.83879445]
[1743940486580,0.0003306,82764.0,82763.0,0.84279445]
[1743940487356,0.0003306,82764.0,82763.0,0.80523124]
[1743940487555,0.0003306,82764.0,82763.0,0.84277981]
[1743940487757,0.0003306,82764.0,82763.0,0.83877981]
[1743940488219,0.0003306,82764.0,82763.0,0.97805981]
[1743940488519,0.0003306,82764.0,82763.0,0.97725374]
[1743940488926,0.0003306,82764.0,82763.0,0.97636014]
[1743940489119,0.0003306,82765.0,82764.0,0.35954085]
[1743940489344,0.0003306,82765.0,82764.0,1.29506783]
[1743940489481,0.0003306,82765.0,82764.0,1.30262592]
[1743940490312,0.0003306,82765.0,82764.0,1.30308612]
[1743940490656,0.0003306,82765.0,82764.0,1.34968612]
[1743940490832,0.004,82789.0,82785.0,0.01454085]
[1743940491095,0.004,82789.0,82787.0,0.01454085]
[1743940491272,0.004,82789.0,82788.0,0.1398592]
[1743940491427,0.004,82789.0,82788.0,0.436035]
[1743940491769,0.004,82789.0,82788.0,0.43361962]
[1743940492334,0.004,82789.0,82788.0,0.43861962]
[1743940492699,0.004,82789.0,82788.0,0.45216841]
[1743940492881,0.004,82789.0,82788.0,0.45816841]
[1743940493681,0.004,82789.0,82788.0,1.23650727]
[1743940494092,0.004,82789.0,82788.0,1.23050727]
[1743940494244,0.004,82789.0,82788.0,1.30076282]
[1743940494666,0.004,82789.0,82788.0,1.23961403]
[1743940495050,0.004,82789.0,82788.0,1.25061403]
[1743940495248,0.004,82789.0,82788.0,1.24561403]
[1743940495780,0.004,82789.0,82788.0,1.25161403]
[1743940496401,0.004,82789.0,82788.0,1.27061403]
[1743940496794,0.0491,82812.0,82795.0,0.005]
[1743940496989,0.0491,82812.0,82797.0,0.01454085]
[1743940497189,0.0491,82812.0,82799.0,0.01454085]
[1743940497361,0.0491,82812.0,82800.0,0.29363062]
[1743940497562,0.0491,82812.0,82801.0,0.01663634]
[1743940497763,0.0491,82812.0,82802.0,0.12290297]
[1743940498012,0.0491,82812.0,82802.0,0.40336317]
[1743940498176,0.0491,82812.0,82803.0,0.01663634]
[1743940498389,0.0491,82812.0,82804.0,0.12290297]
[1743940498583,0.0491,82812.0,82804.0,0.40290297]
[1743940498787,0.0491,82812.0,82805.0,0.01664202]
[1743940498983,0.0491,82812.0,82806.0,0.12290297]
[1743940499366,0.0491,82812.0,82806.0,0.39290297]
[1743940499534,0.0491,82812.0,82807.0,0.01664202]
[1743940499735,0.0491,82812.0,82808.0,0.12290297]
[1743940499935,0.0491,82812.0,82809.0,0.01663067]
[1743940500170,0.0001652,82827.0,82810.0,0.12290297]
[1743940500315,0.0491,82822.0,82811.0,0.35663634]
[1743940500518,0.0491,82822.0,82812.0,0.12531762]
[1743940500688,0.0491,82822.0,82813.0,0.01639255]
[1743940500895,0.0001652,82827.0,82814.0,0.12290297]
[1743940501160,0.0001652,82827.0,82815.0,0.01644307]
[1743940501161,0.0491,82818.0,82815.0,0.01644307]
[1743940501295,0.0491,82818.0,82816.0,0.12290297]
[1743940501516,0.0491,82818.0,82816.0,0.37290297]
[1743940501722,0.0491,82818.0,82817.0,0.01644307]
[1743940501922,0.0961,82818.0,82817.0,0.38934604]
[1743940503475,0.0961,82818.0,82817.0,0.39334604]
[1743940504343,0.0961,82818.0,82817.0,0.39634604]
[1743940504741,0.0961,82818.0,82817.0,0.39234604]
[1743940504926,0.0961,82818.0,82817.0,0.38934604]
[1743940505128,0.0961,82818.0,82817.0,0.39234604]
[1743940505359,0.0961,82818.0,82817.0,0.39534604]
[1743940505531,0.0961,82818.0,82817.0,0.39234604]
[1743940505731,0.0961,82818.0,82817.0,0.39534604]
[1743940505970,0.2293,82818.0,82817.0,0.256]
[1743940506218,0.69220297,82818.0,82817.0,0.01692287]
[1743940506346,0.0889,82816.0,82766.0,1.00396]
[1743940506541,0.34,82814.0,82766.0,1.00396]
[1743940506744,0.0889,82810.0,82767.0,0.34]
[1743940506941,0.0889,82806.0,82767.0,0.34]
[1743940507171,0.0409,82802.0,82768.0,0.12290297]
[1743940507522,0.048,82799.0,82768.0,0.38290297]
[1743940507725,0.34,82798.0,82768.0,0.38290297]
[1743940508701,0.34,82796.0,82768.0,0.39526137]
[1743940508914,0.34,82796.0,82769.0,0.01454085]
[1743940509128,0.34,82794.0,82770.0,0.12290297]
[1743940509335,0.34,82794.0,82770.0,0.36290297]
[1743940510437,0.34,82794.0,82770.0,0.36890297]
[1743940511845,0.13324,82795.0,82770.0,0.36890297]
[1743940512650,0.13324,82795.0,82770.0,0.37490297]
[1743940513070,0.048,82799.0,82770.0,0.36890297]
[1743940513393,0.13324,82794.0,82770.0,0.36890297]
[1743940513764,0.1334052,82794.0,82771.0,0.00659435]
[1743940513952,0.1334052,82794.0,82772.0,0.12290297]
[1743940514100,0.1334052,82794.0,82773.0,0.00656595]
[1743940514296,0.1334052,82794.0,82774.0,0.12290297]
[1743940514496,0.1334052,82794.0,82774.0,0.36290297]
[1743940514715,0.0001652,82794.0,82778.0,0.34]
[1743940514916,0.0001652,82794.0,82779.0,0.1463144]
[1743940515123,0.0001652,82794.0,82779.0,0.3963144]
[1743940515321,0.0001652,82794.0,82779.0,0.39389898]
[1743940516017,0.0001652,82794.0,82779.0,0.37935813]
[1743940516157,0.0001652,82794.0,82780.0,0.03750401]
[1743940516427,0.0001652,82794.0,82781.0,0.12290297]
[1743940516716,0.0001652,82794.0,82782.0,0.03750401]
[1743940516888,0.0001652,82794.0,82783.0,0.12290297]
[1743940517061,0.0001652,82794.0,82783.0,0.40290297]
[1743940517279,0.0001652,82794.0,82784.0,0.00661493]
[1743940517470,0.0001652,82794.0,82785.0,0.12290297]
[1743940517666,0.0001652,82794.0,82785.0,0.40290297]
[1743940518053,0.0001652,82794.0,82786.0,0.00661273]
[1743940518254,0.0001652,82794.0,82787.0,0.12290297]
[1743940518454,0.0001652,82794.0,82787.0,0.40290297]
[1743940518858,0.0001652,82794.0,82788.0,0.00661273]
[1743940519213,0.0001652,82794.0,82788.0,0.4095157]
[1743940519892,0.0001652,82794.0,82788.0,0.28661273]
[1743940521148,0.0001652,82794.0,82788.0,0.28861273]
[1743940536147,0.0001652,82794.0,82788.0,0.33521273]
[1743940539611,0.0001652,82794.0,82788.0,0.28861273]
[1743940542683,0.0001652,82794.0,82788.0,0.28894293]
[1743940547565,0.0001652,82794.0,82789.0,0.03771136]
[1743940547760,0.0001652,82794.0,82790.0,0.0066535]
[1743940547966,0.0001652,82794.0,82791.0,0.03770866]
[1743940548191,0.0001652,82794.0,82791.0,0.29770866]
[1743940548393,0.0001652,82794.0,82792.0,0.04436313]
[1743940548591,0.0001652,82794.0,82793.0,0.03770792]
[1743940548812,0.0001652,82794.0,82793.0,0.2843671]
[1743940549526,0.0001652,82794.0,82793.0,0.28482346]
[1743940559233,0.0001652,82794.0,82793.0,0.40772643]
[1743940561174,0.0001652,82794.0,82793.0,0.45742643]
[1743940565118,0.0001652,82794.0,82793.0,0.47196728]
[1743940565995,0.0001652,82794.0,82793.0,0.47596728]
[1743940566195,0.0001652,82794.0,82793.0,0.47396728]
[1743940566440,0.0001652,82794.0,82793.0,0.47196728]
[1743940566623,0.0001652,82794.0,82793.0,0.47396728]
[1743940566840,0.0001652,82794.0,82793.0,0.47696728]
[1743940567005,0.0001652,82794.0,82793.0,0.47496728]
[1743940567215,0.0001652,82794.0,82793.0,0.47396728]
[1743940567372,0.0001652,82794.0,82793.0,0.47696728]
[1743940568807,0.0001652,82794.0,82793.0,0.47496728]
[1743940569129,0.0001652,82794.0,82793.0,0.47696728]
[1743940569647,0.0001652,82794.0,82793.0,0.86866728]
[1743940569948,0.0001651,82802.0,82796.0,0.01454085]
[1743940570144,0.0001651,82802.0,82800.0,0.01454085]
[1743940570380,0.0001651,82802.0,82801.0,0.17515174]
[1743940570514,0.0001651,82802.0,82801.0,0.44172402]
[1743940571007,0.0001651,82802.0,82801.0,0.49052402]
[1743940571210,0.0001651,82802.0,82801.0,0.53722402]
[1743940573426,0.0001651,82802.0,82801.0,0.54122402]
[1743940573851,0.0001651,82802.0,82801.0,0.53922402]
[1743940574131,0.0001651,82802.0,82801.0,0.54122402]
[1743940574909,0.0001651,82802.0,82801.0,0.53922402]
[1743940575044,0.0001651,82802.0,82801.0,0.54322402]
[1743940575627,0.0001651,82802.0,82801.0,0.53922402]
[1743940576435,0.0001651,82802.0,82801.0,0.54122402]
[1743940576634,0.0001651,82802.0,82801.0,0.88122402]
[1743940576882,0.0001651,82802.0,82801.0,0.88422402]
[1743940577306,0.0001651,82802.0,82801.0,0.88622402]
[1743940577918,0.0001651,82802.0,82801.0,0.88222402]
[1743940578320,0.0001651,82802.0,82801.0,1.01738402]
[1743940578719,0.0001651,82802.0,82801.0,1.01538402]
[1743940579136,0.0001651,82802.0,82801.0,1.02038402]
[1743940579321,0.0001651,82802.0,82801.0,1.02338402]
[1743940579523,0.0001651,82802.0,82801.0,1.01838402]
[1743940579749,0.0001651,82802.0,82801.0,1.02038402]
[1743940580167,0.0001651,82802.0,82801.0,1.02438402]
[1743940580672,0.0001651,82802.0,82801.0,1.02738402]
[1743940581310,0.0001651,82802.0,82801.0,1.01538402]
[1743940581515,0.0001651,82802.0,82801.0,1.01838402]
[1743940582464,0.0001651,82802.0,82801.0,1.01538402]
[1743940582668,0.0001651,82802.0,82801.0,0.88222402]
[1743940582891,0.0001651,82802.0,82801.0,1.02238402]
[1743940583099,0.0001651,82802.0,82801.0,1.01838402]
[1743940583446,0.0001651,82802.0,82801.0,1.02138402]
[1743940584294,0.0001651,82802.0,82801.0,1.01538402]
[1743940584737,0.0001651,82802.0,82801.0,1.01938402]
[1743940585467,0.0001651,82802.0,82801.0,1.04838402]
[1743940585807,0.0001651,82802.0,82801.0,1.04438402]
[1743940586233,0.0001651,82802.0,82801.0,1.05038402]
[1743940586453,0.0001651,82802.0,82801.0,1.04638402]
[1743940586852,0.0001651,82802.0,82801.0,1.05238402]
[1743940587172,0.0001651,82802.0,82801.0,1.04638402]
[1743940587367,0.0001651,82802.0,82801.0,1.04438402]
[1743940587745,0.0001651,82802.0,82801.0,1.04838402]
[1743940587992,0.0001651,82802.0,82801.0,1.05438402]
[1743940588285,0.0001651,82802.0,82801.0,1.04438402]
[1743940589005,0.0001651,82802.0,82801.0,1.04038402]
[1743940589287,0.0001651,82802.0,82801.0,1.04638402]
[1743940589793,0.0001651,82802.0,82801.0,1.05038402]
[1743940590034,0.004,82819.0,82804.0,0.0481]
[1743940590262,0.004,82819.0,82806.0,0.34]
[1743940590480,0.004,82819.0,82809.0,0.01454085]
[1743940590666,0.004,82819.0,82811.0,0.35454085]
[1743940590966,0.004,82819.0,82813.0,0.34]
[1743940591190,0.004,82819.0,82814.0,0.16302555]
[1743940591326,0.004,82819.0,82815.0,0.03770792]
[1743940591533,0.004,82819.0,82816.0,0.16302555]
[1743940591899,0.004,82819.0,82817.0,0.00519978]
[1743940592066,0.004,82819.0,82818.0,0.12531763]
[1743940592234,0.004,82819.0,82818.0,0.39531763]
[1743940592439,0.004,82819.0,82818.0,0.39810842]
[1743940593181,0.004,82819.0,82818.0,0.39856478]
[1743940593721,0.004,82819.0,82818.0,0.41036503]
[1743940594500,0.004,82819.0,82818.0,0.44793151]
[1743940594705,0.004,82819.0,82818.0,0.44893151]
[1743940595293,0.004,82819.0,82818.0,0.44993151]
[1743940597181,0.004,82819.0,82818.0,0.41236503]
[1743940597368,0.0041652,82819.0,82818.0,0.42690588]
[1743940597658,0.0041652,82819.0,82818.0,0.46448183]
[1743940598371,0.0041652,82819.0,82818.0,0.46348183]
[1743940598567,0.0041652,82819.0,82818.0,0.46248183]
[1743940598733,0.0041652,82819.0,82818.0,0.46348183]
[1743940598935,0.0041652,82819.0,82818.0,0.46448183]
[1743940600659,0.0041652,82819.0,82818.0,0.46348183]
[1743940601100,0.0041652,82819.0,82818.0,0.46448183]
[1743940601250,0.0041652,82819.0,82818.0,0.46348183]
[1743940601681,0.0041652,82819.0,82818.0,0.46248183]
[1743940601880,0.0041652,82819.0,82818.0,0.46348183]
[1743940605132,0.0041652,82819.0,82818.0,0.44894098]
[1743940612107,0.0041652,82819.0,82818.0,0.32603801]
[1743940614273,0.0041652,82819.0,82818.0,0.32083256]
[1743940617515,0.0041652,82819.0,82818.0,0.31907826]
[1743940623096,0.0041652,82819.0,82818.0,0.30727801]
[1743940623704,0.0041652,82819.0,82818.0,0.26970206]
[1743940627948,0.0500652,82819.0,82818.0,0.26970206]
[1743940628154,0.0500652,82819.0,82818.0,0.26870206]
[1743940628504,0.0500652,82819.0,82818.0,0.26970206]